bitfinex/quotes_SOLUSD_20220117
["timestamp","ask_amount","ask_price","bid_price","bid_amount"]
[1642396740905,50.30071236,142.47,142.38,74.50516564]
[1642396741510,50.30071236,142.47,142.38,63.72166564]
[1642396741710,50.30071236,142.47,142.38,39.14126564]
[1642396741910,10.12,142.46,142.36,10.535]
[1642396742309,16.37,142.46,142.36,10.535]
[1642396742509,86.42,142.46,142.36,10.535]
[1642396743011,16.37,142.46,142.37,43.80161385]
[1642396743410,28.89833039,142.46,142.37,44.05161385]
[1642396745512,28.89833039,142.46,142.37,43.80161385]
[1642396746814,28.89833039,142.46,142.37,44.05161385]
[1642396747012,18.36233039,142.46,142.37,44.05161385]
[1642396747614,18.36233039,142.46,142.37,67.51441385]
[1642396749114,70.05,142.45,142.37,43.80161385]
[1642396749341,48.58171274,142.44,142.37,43.80161385]
[1642396749819,54.83171274,142.44,142.34,10.5364]
[1642396750019,80.17,142.43,142.34,10.7864]
[1642396750218,80.17,142.43,142.34,0.25]
[1642396750417,86.42,142.43,142.33,22.5466]
[1642396750620,88.12077588,142.43,142.32,12.46765555]
[1642396750819,88.12077588,142.43,142.33,48.81469645]
[1642396751419,98.65897588,142.43,142.33,48.81469645]
[1642396752420,98.65897588,142.43,142.33,49.06469645]
[1642396752421,1.99233039,142.42,142.33,49.06469645]
[1642396752718,10.12,142.41,142.33,48.81469645]
[1642396752918,16.37,142.41,142.33,49.06469645]
[1642396754219,16.12,142.41,142.33,59.60199645]
[1642396754420,16.37,142.41,142.33,59.60199645]
[1642396754623,16.12,142.41,142.33,59.60199645]
[1642396754818,12.11233039,142.44,142.33,59.60199645]
[1642396755022,12.11233039,142.44,142.34,23.7641]
[1642396755219,18.11233039,142.44,142.34,34.3003]
[1642396755419,7.99233039,142.44,142.35,1.238112]
[1642396755630,1.99233039,142.44,142.35,1.238112]
[1642396755822,1.99233039,142.45,142.35,8.103]
[1642396756020,1.99233039,142.45,142.36,23.7775]
[1642396756219,1.99233039,142.45,142.37,37.61556385]
[1642396756423,1.99233039,142.45,142.37,37.86556385]
[1642396756620,1.99233039,142.45,142.38,23.0462]
[1642396756848,1.99233039,142.45,142.38,33.8298]
[1642396757021,1.99233039,142.45,142.38,39.1978]
[1642396757220,1.99233039,142.46,142.38,39.1978]
[1642396757625,1.99233039,142.46,142.39,0.26]
[1642396757821,1.99233039,142.46,142.39,70.31]
[1642396758021,1.99233039,142.46,142.41,10.5305]
[1642396758221,1.99233039,142.48,142.41,10.5305]
[1642396758422,2.24233039,142.48,142.41,0.25]
[1642396758623,8.24233039,142.48,142.41,0.25]
[1642396758823,2.24233039,142.48,142.41,0.25]
[1642396759026,8.24233039,142.48,142.41,0.25]
[1642396759426,8.24233039,142.48,142.4,59.67087521]
[1642396761625,6.25,142.48,142.4,59.67087521]
[1642396761826,0.25,142.48,142.4,59.67087521]
[1642396762027,65.04064956,142.49,142.4,70.20307521]
[1642396763527,64.79064956,142.49,142.4,70.20307521]
[1642396764757,64.79064956,142.49,142.4,69.95307521]
[1642396765558,18.11233039,142.49,142.4,69.95307521]
[1642396765957,18.36233039,142.49,142.4,69.95307521]
[1642396766158,18.36233039,142.49,142.4,70.20307521]
[1642396766358,18.36233039,142.49,142.4,76.20307521]
[1642396766759,10.12,142.49,142.41,0.26]
[1642396766962,10.12,142.49,142.44,39.06963237]
[1642396767958,57.85135254,142.49,142.44,39.06963237]
[1642396768158,64.10135254,142.49,142.44,39.06963237]
[1642396768363,58.10135254,142.49,142.44,39.06963237]
[1642396769162,10.37,142.49,142.44,39.06963237]
[1642396769961,16.37,142.49,142.44,39.06963237]
[1642396771261,10.37,142.49,142.44,39.06963237]
[1642396771464,16.37,142.49,142.44,39.06963237]
[1642396774064,16.12,142.49,142.44,39.06963237]
[1642396774465,16.37,142.49,142.44,39.06963237]
[1642396774866,52.10846399,142.49,142.44,39.06963237]
[1642396775067,16.12,142.49,142.44,39.06963237]
[1642396775469,10.12,142.49,142.44,39.31963237]
[1642396775679,10.12,142.49,142.44,39.06963237]
[1642396776769,10.37,142.49,142.44,39.06963237]
[1642396777471,16.12,142.49,142.44,39.06963237]
[1642396778474,59.40166703,142.49,142.44,39.06963237]
[1642396778673,49.28166703,142.49,142.4,10.532]
[1642396778869,50.98244291,142.49,142.37,23.7062]
[1642396779069,10.12,142.48,142.37,29.7062]
[1642396779570,16.37,142.48,142.38,42.37725081]
[1642396779769,1.99233039,142.47,142.38,42.37725081]
[1642396779969,10.12,142.46,142.38,42.62725081]
[1642396780371,16.37,142.46,142.38,66.21655081]
[1642396780973,58.67311786,142.46,142.38,66.21655081]
[1642396781173,58.67311786,142.46,142.38,65.96655081]
[1642396782176,60.66544825,142.46,142.38,65.96655081]
[1642396784372,71.20104825,142.46,142.38,65.96655081]
[1642396784577,1.99233039,142.45,142.38,65.96655081]
[1642396784774,2.24233039,142.45,142.38,65.96655081]
[1642396784974,8.24233039,142.45,142.38,65.96655081]
[1642396785173,8.24233039,142.45,142.38,42.37725081]
[1642396785773,6.25,142.45,142.38,42.37725081]
[1642396786173,0.25,142.45,142.38,42.37725081]
[1642396786374,6.0,142.45,142.38,42.37725081]
[1642396786873,2.24233039,142.45,142.38,42.37725081]
[1642396787074,2.24233039,142.45,142.38,42.62725081]
[1642396787274,8.24233039,142.45,142.38,42.62725081]
[1642396788274,6.25,142.45,142.38,42.62725081]
[1642396788478,6.0,142.45,142.38,42.62725081]
[1642396788675,7.99233039,142.46,142.38,53.16065081]
[1642396788875,7.99233039,142.46,142.38,61.54765081]
[1642396789677,7.99233039,142.46,142.38,62.78576281]
[1642396790077,6.0,142.46,142.38,61.54765081]
[1642396790275,6.0,142.46,142.38,62.78576281]
[1642396790476,1.99233039,142.48,142.39,70.05]
[1642396790675,3.8811777,142.51,142.41,90.0]
[1642396790874,3.8811777,142.51,142.42,34.0437]
[1642396790875,9.8811777,142.51,142.42,34.0437]
[1642396791082,3.8811777,142.51,142.42,34.0437]
[1642396791275,3.8811777,142.51,142.42,34.2937]
[1642396791476,3.8811777,142.51,142.43,41.44159581]
[1642396791877,6.0,142.53,142.45,10.5266]
[1642396792076,9.98976626,142.53,142.45,16.5866]
[1642396792277,3.98976626,142.53,142.46,0.26]
[1642396792479,9.98976626,142.53,142.46,0.26]
[1642396792878,9.98976626,142.53,142.46,42.94712639]
[1642396793078,6.0,142.53,142.46,42.94712639]
[1642396793279,6.0,142.53,142.46,43.19712639]
[1642396793481,16.12,142.57,142.49,43.18420285]
[1642396794082,16.12,142.57,142.49,43.43420285]
[1642396794882,16.12,142.57,142.49,43.18420285]
[1642396794883,39.87085775,142.56,142.49,43.18420285]
[1642396795083,80.17,142.55,142.49,43.18420285]
[1642396795481,86.42,142.55,142.49,43.18420285]
[1642396796183,16.37,142.55,142.49,43.18420285]
[1642396800013,63.9016467,142.55,142.48,23.0742]
[1642396800217,41.07177808,142.6,142.59,922.4743]
[1642396800416,14.45592321,142.67,142.61,78.0]
[1642396800615,14.45592321,142.67,142.62,10.12]
[1642396800818,440.18540684,142.7,142.64,103.0]
[1642396801015,21.22389643,142.73,142.65,10.12]
[1642396801219,0.3519766,142.74,142.66,47.13547878]
[1642396801415,0.3519766,142.74,142.66,47.38547878]
[1642396802216,0.3519766,142.74,142.66,57.89817878]
[1642396802717,0.3519766,142.74,142.66,20.8827]
[1642396802915,0.3519766,142.74,142.66,10.37]
[1642396803116,0.3519766,142.74,142.66,10.12]
[1642396803316,0.3519766,142.74,142.63,34.9014]
[1642396803516,0.3519766,142.74,142.63,10.12]
[1642396803720,0.3519766,142.74,142.6,73.10058714]
[1642396804117,10.4719766,142.74,142.6,73.10058714]
[1642396804317,16.4719766,142.74,142.6,73.10058714]
[1642396804520,16.7219766,142.74,142.6,73.10058714]
[1642396804718,16.7219766,142.74,142.6,83.61778714]
[1642396804917,44.5590045,142.72,142.6,83.61778714]
[1642396805318,50.8090045,142.72,142.6,83.61778714]
[1642396805517,50.5590045,142.72,142.6,83.86778714]
[1642396805718,50.5590045,142.72,142.61,22.5784]
[1642396805920,120.6090045,142.72,142.61,22.8284]
[1642396806918,120.8590045,142.72,142.61,22.8284]
[1642396807519,131.3773045,142.72,142.61,22.5784]
[1642396808221,61.3273045,142.72,142.61,22.5784]
[1642396808923,61.3273045,142.72,142.61,33.345]
[1642396809321,50.5590045,142.72,142.61,33.345]
[1642396809520,20.9882766,142.74,142.61,33.345]
[1642396810521,37.39080736,142.73,142.61,33.345]
[1642396810924,43.39080736,142.73,142.61,33.345]
[1642396811123,43.39080736,142.73,142.62,10.12]
[1642396811321,43.39080736,142.73,142.63,17.36595754]
[1642396811524,43.39080736,142.73,142.64,24.0363]
[1642396811922,43.39080736,142.73,142.64,24.2863]
[1642396812323,43.64080736,142.73,142.64,24.2863]
[1642396813533,70.05,142.72,142.64,24.2863]
[1642396813733,70.3,142.72,142.6,33.9827]
[1642396813933,70.05,142.7,142.6,29.8627]
[1642396814136,70.05,142.7,142.6,23.8627]
[1642396814333,86.42,142.7,142.6,23.8627]
[1642396814533,41.7785835,142.69,142.6,23.8627]
[1642396814734,51.8985835,142.69,142.49,76.0755]
[1642396814933,68.6683835,142.69,142.55,10.5209]
[1642396815936,68.6683835,142.69,142.56,39.90680998]
[1642396816135,68.6683835,142.69,142.56,50.42690998]
[1642396816337,68.6683835,142.69,142.57,23.3919]
[1642396817138,26.8898,142.69,142.57,23.3919]
[1642396817338,16.12,142.69,142.57,33.9115]
[1642396817539,16.12,142.69,142.57,34.1615]
[1642396818540,16.37,142.69,142.57,34.1615]
[1642396818740,16.12,142.69,142.58,0.26]
[1642396818941,16.12,142.69,142.61,10.5165]
[1642396819342,16.12,142.69,142.61,10.7665]
[1642396819539,10.12,142.69,142.61,10.7665]
[1642396819740,10.12,142.69,142.62,6.0618347]
[1642396820040,10.37,142.69,142.63,10.5153]
[1642396820639,10.37,142.69,142.62,6.3118347]
[1642396822042,0.25,142.69,142.62,6.3118347]
[1642396822243,10.12,142.72,142.63,24.2576]
[1642396822445,49.47409715,142.71,142.63,24.2576]
[1642396822644,49.47409715,142.71,142.62,6.0618347]
[1642396822845,10.12,142.7,142.6,22.8818]
[1642396823244,16.37,142.7,142.6,22.8818]
[1642396823947,16.37,142.7,142.61,38.44114326]
[1642396824470,26.6389,142.7,142.61,38.44114326]
[1642396824668,6.0,142.7,142.62,23.7955]
[1642396824866,6.0,142.73,142.62,24.0455]
[1642396825067,10.12,142.72,142.62,24.0455]
[1642396825568,16.12,142.72,142.62,34.5613]
[1642396826369,16.37,142.72,142.62,34.5613]
[1642396827169,51.20052618,142.72,142.62,34.5613]
[1642396827368,51.20052618,142.72,142.62,24.0455]
[1642396827569,70.05,142.71,142.62,24.0455]
[1642396827970,76.3,142.71,142.62,24.0455]
[1642396829372,6.25,142.71,142.62,24.0455]
[1642396829873,0.25,142.71,142.62,24.0455]
[1642396830372,16.4719766,142.74,142.62,24.0455]
[1642396830576,16.4719766,142.74,142.63,0.26]
[1642396830776,6.3519766,142.74,142.63,0.26]
[1642396831176,0.3519766,142.74,142.66,10.5123]
[1642396831478,6.3519766,142.74,142.67,24.9003]
[1642396831875,0.3519766,142.74,142.67,25.1503]
[1642396832079,6.3519766,142.74,142.67,25.1503]
[1642396832276,6.3519766,142.74,142.68,7.52750142]
[1642396832479,6.6019766,142.74,142.68,7.52750142]
[1642396832678,0.6019766,142.74,142.68,7.52750142]
[1642396832879,0.3519766,142.74,142.67,35.4123]
[1642396833176,0.3519766,142.74,142.67,24.9003]
[1642396833578,10.8674766,142.74,142.62,10.12]
[1642396833777,10.12,142.73,142.63,23.9706]
[1642396833979,48.18621887,142.72,142.63,23.9706]
[1642396834178,58.30621887,142.72,142.61,43.05898221]
[1642396834381,64.55621887,142.72,142.62,24.4169]
[1642396834581,26.8872,142.72,142.62,24.4169]
[1642396834779,16.37,142.72,142.62,24.4169]
[1642396834978,16.37,142.72,142.62,94.7169]
[1642396835180,3.98808418,142.71,142.62,94.7169]
[1642396835380,9.98808418,142.71,142.62,94.7169]
[1642396835580,3.98808418,142.71,142.65,10.5121]
[1642396835781,3.98808418,142.71,142.66,2.90966247]
[1642396836183,0.3519766,142.74,142.66,3.15966247]
[1642396836380,0.3519766,142.74,142.67,24.8743]
[1642396836780,0.3519766,142.74,142.67,35.6355]
[1642396836982,0.3519766,142.74,142.68,0.26]
[1642396837184,0.3519766,142.74,142.68,5.931]
[1642396837481,0.3519766,142.74,142.68,6.181]
[1642396837983,0.3519766,142.74,142.69,53.56828221]
[1642396838182,0.3519766,142.74,142.67,24.8743]
[1642396839285,41.39071614,142.74,142.67,24.8743]
[1642396839689,47.64071614,142.74,142.67,24.8743]
[1642396840488,58.15501614,142.74,142.65,23.8142]
[1642396842089,3.98525931,142.73,142.66,22.7007]
[1642396842490,10.23525931,142.73,142.66,22.7007]
[1642396842789,20.35525931,142.73,142.66,22.7007]
[1642396843189,20.10525931,142.73,142.66,22.7007]
[1642396843390,20.10525931,142.73,142.66,22.9507]
[1642396843590,9.98525931,142.73,142.66,22.9507]
[1642396843792,6.0,142.73,142.66,22.7007]
[1642396844193,47.39071614,142.74,142.66,22.7007]
[1642396844595,57.90521614,142.74,142.66,22.7007]
[1642396844795,10.12,142.73,142.66,22.7007]
[1642396845193,16.37,142.73,142.66,22.7007]
[1642396846893,16.37,142.73,142.67,9.2337409]
[1642396847696,6.25,142.73,142.67,9.2337409]
[1642396847895,0.25,142.73,142.67,9.2337409]
[1642396848097,6.0,142.73,142.68,23.1259]
[1642396848497,0.3519766,142.74,142.68,23.3759]
[1642396849303,0.3519766,142.74,142.68,33.8848]
[1642396851301,0.3519766,142.74,142.69,80.5583]
[1642396851504,0.3519766,142.74,142.69,16.2643]
[1642396851702,0.3519766,142.74,142.69,5.756]
[1642396852103,0.3519766,142.74,142.7,22.6187]
[1642396852302,0.3519766,142.74,142.7,59.35360378]
[1642396853405,0.3519766,142.74,142.7,65.46360378]
[1642396853604,0.3519766,142.74,142.7,28.7287]
[1642396853803,0.3519766,142.74,142.65,23.8142]
[1642396854205,0.3519766,142.74,142.65,24.0642]
[1642396854405,0.3519766,142.74,142.65,34.1842]
[1642396854604,0.3519766,142.74,142.66,64.371792]
[1642396854804,0.3519766,142.74,142.67,10.12]
[1642396855205,0.3519766,142.74,142.67,10.37]
[1642396856104,0.3519766,142.74,142.68,22.6856]
[1642396856305,0.3519766,142.74,142.69,6.07435268]
[1642396857406,0.3519766,142.74,142.69,6.32435268]
[1642396860712,0.3519766,142.74,142.69,6.07435268]
[1642396860910,0.3519766,142.74,142.66,34.0663]
[1642396861914,0.3519766,142.74,142.66,71.74344009]
[1642396862113,0.3519766,142.74,142.66,61.48284009]
[1642396862413,0.3519766,142.74,142.66,23.8057]
[1642396863014,0.3519766,142.74,142.59,33.5621]
[1642396863212,10.12,142.73,142.6,42.54556315]
[1642396863413,46.95053872,142.72,142.61,22.7566]
[1642396863614,57.07053872,142.72,142.61,22.7566]
[1642396863814,63.32053872,142.72,142.61,22.7566]
[1642396864212,1.70077588,142.71,142.61,22.7566]
[1642396864429,6.25,142.71,142.61,23.0066]
[1642396864816,0.25,142.71,142.62,0.26]
[1642396865015,3.98982992,142.72,142.62,0.26]
[1642396865214,0.3519766,142.74,142.62,0.26]
[1642396865215,0.3519766,142.74,142.62,10.38]
[1642396865419,0.3519766,142.74,142.62,17.86410401]
[1642396865638,0.3519766,142.74,142.63,3.42308153]
[1642396865840,0.3519766,142.74,142.64,0.26]
[1642396866041,0.3519766,142.74,142.65,10.5114]
[1642396866242,0.3519766,142.74,142.66,38.23283951]
[1642396866440,0.3519766,142.74,142.66,38.48283951]
[1642396866640,0.3519766,142.74,142.66,44.70783951]
[1642396867542,0.3519766,142.74,142.66,68.42193951]
[1642396870743,0.3519766,142.74,142.66,68.17193951]
[1642396871341,0.3519766,142.74,142.66,61.94693951]
[1642396872842,0.3519766,142.74,142.66,62.19693951]
[1642396885963,0.3519766,142.74,142.66,23.9641]
[1642396886166,0.3519766,142.74,142.66,23.7141]
[1642396887266,0.3519766,142.74,142.66,23.9641]
[1642396887464,4.34455062,142.74,142.66,23.9641]
[1642396887664,48.93317014,142.73,142.66,23.9641]
[1642396887966,49.18317014,142.73,142.66,23.9641]
[1642396889069,0.25,142.73,142.66,23.9641]
[1642396889369,4.59455062,142.74,142.66,23.9641]
[1642396889970,4.34455062,142.74,142.66,23.9641]
[1642396890371,0.3519766,142.74,142.66,23.9641]
[1642396890772,0.3519766,142.74,142.66,34.4746]
[1642396893096,0.3519766,142.74,142.66,42.1496]
[1642396894900,0.3519766,142.74,142.66,34.4746]
[1642396896100,0.3519766,142.74,142.67,70.31]
[1642396896300,0.3519766,142.74,142.68,80.5585]
[1642396896700,0.3519766,142.74,142.68,80.8085]
[1642396896900,0.3519766,142.74,142.69,4.18216]
[1642396897102,0.3519766,142.74,142.69,10.18016]
[1642396897301,0.3519766,142.74,142.69,10.43016]
[1642396898103,0.3519766,142.74,142.69,35.35676]
[1642396899008,0.3519766,142.74,142.69,45.86496]
[1642396901611,0.3519766,142.74,142.7,70.05]
[1642396901808,0.3519766,142.74,142.71,80.5559]
[1642396902209,0.3519766,142.74,142.72,0.26]
[1642396902410,3.99257402,142.78,142.73,87.03219997]
[1642396902811,3.99257402,142.78,142.73,87.28219997]
[1642396903411,3.99257402,142.78,142.73,97.78759997]
[1642396903612,3.99257402,142.78,142.73,167.83759997]
[1642396903811,3.99257402,142.8,142.73,167.83759997]
[1642396904012,9.99257402,142.8,142.73,167.83759997]
[1642396904214,3.99257402,142.8,142.73,167.83759997]
[1642396904417,9.99257402,142.8,142.73,167.83759997]
[1642396904614,9.99257402,142.8,142.73,97.78759997]
[1642396904914,6.0,142.8,142.73,167.83759997]
[1642396905315,9.99257402,142.81,142.73,167.83759997]
[1642396905517,3.99257402,142.81,142.73,167.83759997]
[1642396905714,9.99257402,142.81,142.73,167.83759997]
[1642396905913,6.0,142.81,142.74,22.5402]
[1642396906113,6.0,142.81,142.74,33.0443]
[1642396906315,9.99257402,142.82,142.74,33.2943]
[1642396906513,3.99257402,142.82,142.74,33.2943]
[1642396906716,9.99257402,142.82,142.74,33.2943]
[1642396906919,6.0,142.82,142.75,12.77927176]
[1642396907114,6.0,142.82,142.75,19.36027176]
[1642396907314,9.99257402,142.84,142.75,19.61027176]
[1642396907516,3.99257402,142.84,142.76,24.9224]
[1642396907814,9.99257402,142.84,142.76,24.9224]
[1642396908016,9.99257402,142.84,142.76,25.1724]
[1642396908616,6.0,142.84,142.76,25.1724]
[1642396909016,9.99257402,142.85,142.76,25.1724]
[1642396909217,3.99257402,142.85,142.76,25.1724]
[1642396909424,9.99257402,142.85,142.76,25.1724]
[1642396910014,46.49792711,142.84,142.76,25.1724]
[1642396910418,52.49792711,142.84,142.76,25.1724]
[1642396911518,1.9886933,142.82,142.76,25.1724]
[1642396911917,7.9886933,142.82,142.76,25.1724]
[1642396912320,7.9886933,142.82,142.76,24.9224]
[1642396913120,41.25896879,142.81,142.76,24.9224]
[1642396913519,47.25896879,142.81,142.76,24.9224]
[1642396913721,47.25896879,142.81,142.76,25.1724]
[1642396918956,7.9886933,142.81,142.76,25.1724]
[1642396920962,54.72435398,142.81,142.76,25.1724]
[1642396921167,7.9886933,142.81,142.76,25.1724]
[1642396921465,1.9886933,142.8,142.76,25.1724]
[1642396921865,7.9886933,142.8,142.76,25.1724]
[1642396925768,45.71341953,142.8,142.76,25.1724]
[1642396927170,45.71341953,142.8,142.73,23.1905]
[1642396927373,1.9886933,142.79,142.73,23.1905]
[1642396927772,8.2386933,142.79,142.73,23.1905]
[1642396927971,8.2386933,142.79,142.7,42.87838079]
[1642396928172,1.9886933,142.77,142.7,42.87838079]
[1642396928873,1.9886933,142.76,142.7,43.12838079]
[1642396929571,1.9886933,142.76,142.7,53.63528079]
[1642396931874,1.9886933,142.77,142.7,53.63528079]
[1642396933075,7.9886933,142.77,142.71,23.8351]
[1642396933275,1.9886933,142.77,142.71,23.8351]
[1642396933476,1.9886933,142.77,142.71,24.0851]
[1642396934278,7.9886933,142.77,142.71,24.0851]
[1642396934487,1.9886933,142.77,142.71,24.0851]
[1642396936179,7.9886933,142.77,142.71,24.0851]
[1642396936379,1.4886933,142.77,142.71,24.0851]
[1642396939911,7.4886933,142.77,142.71,24.0851]
[1642396940311,1.4886933,142.77,142.71,24.0851]
[1642396946939,7.4886933,142.77,142.71,24.0851]
[1642396947126,1.4886933,142.77,142.71,24.0851]
[1642396952731,1.4886933,142.77,142.71,34.5915]
[1642396953435,43.7928561,142.81,142.71,34.5915]
[1642396953631,9.99257402,142.81,142.71,34.5915]
[1642396954438,9.99257402,142.81,142.71,34.3415]
[1642396954632,42.01650355,142.8,142.71,34.3415]
[1642396954833,48.01650355,142.8,142.71,34.3415]
[1642396955937,48.01650355,142.8,142.71,34.5915]
[1642396957136,6.0,142.8,142.71,34.5915]
[1642396957335,0.25,142.8,142.71,34.5915]
[1642396957537,9.99257402,142.81,142.71,34.5915]
[1642396957737,10.24257402,142.81,142.71,34.5915]
[1642396958337,54.38672202,142.81,142.71,34.5915]
[1642396964064,54.38672202,142.81,142.71,23.8351]
[1642396964262,64.50672202,142.81,142.68,10.418]
[1642396964464,66.2074979,142.81,142.68,10.418]
[1642396964863,66.2074979,142.81,142.66,22.9076]
[1642396965064,66.2074979,142.81,142.67,24.0008]
[1642396965264,74.04635021,142.8,142.67,24.0008]
[1642396965466,53.22833568,142.77,142.67,24.0008]
[1642396965767,3.99257402,142.77,142.67,24.0008]
[1642396965971,3.99257402,142.77,142.68,70.31]
[1642396966367,3.99257402,142.77,142.68,70.56]
[1642396966565,3.99257402,142.77,142.69,4.0383303]
[1642396966766,3.99257402,142.77,142.69,20.8561303]
[1642396966966,3.99257402,142.77,142.7,0.26]
[1642396967365,3.99257402,142.77,142.7,24.4073]
[1642396967567,3.99257402,142.77,142.7,24.6573]
[1642396967766,6.0,142.8,142.7,24.6573]
[1642396967767,9.99257402,142.8,142.7,24.6573]
[1642396967968,9.99257402,142.8,142.71,10.5062]
[1642396968367,9.99257402,142.8,142.72,0.26]
[1642396968567,9.99257402,142.8,142.72,23.3759]
[1642396968771,6.0,142.8,142.72,23.6259]
[1642396968971,6.0,142.8,142.73,34.09539604]
[1642396969169,222.49257402,142.82,142.73,34.09539604]
[1642396969368,222.74257402,142.82,142.73,34.34539604]
[1642396969570,222.74257402,142.82,142.74,10.5044]
[1642396970070,222.74257402,142.82,142.74,34.5096]
[1642396970972,212.5,142.82,142.74,34.5096]
[1642396971173,212.5,142.82,142.75,0.26]
[1642396971372,212.5,142.82,142.77,10.5017]
[1642396971772,212.5,142.82,142.77,10.7517]
[1642396972774,212.5,142.82,142.77,0.25]
[1642396973074,212.5,142.82,142.76,24.528]
[1642396974578,253.90215033,142.82,142.76,34.7809]
[1642396974777,253.90215033,142.82,142.72,10.12]
[1642396974976,253.90215033,142.82,142.73,23.9513]
[1642396975576,253.90215033,142.82,142.74,10.5041]
[1642396975778,254.15215033,142.82,142.74,10.5041]
[1642396975978,260.15215033,142.82,142.74,10.7541]
[1642396976578,260.15215033,142.82,142.74,10.5041]
[1642396977180,260.15215033,142.82,142.67,13.77741328]
[1642396977181,212.5,142.81,142.67,13.77741328]
[1642396977381,10.12,142.8,142.67,3.65741328]
[1642396977680,10.12,142.8,142.65,3.6473922]
[1642396977681,11.82077588,142.8,142.66,22.6786]
[1642396977882,1.70077588,142.79,142.66,26.33617875]
[1642396978082,51.06273853,142.79,142.66,67.77786312]
[1642396978283,57.31273853,142.79,142.66,67.77786312]
[1642396978483,1.70077588,142.78,142.66,67.77786312]
[1642396978683,1.70077588,142.78,142.66,68.02786312]
[1642396978886,7.95077588,142.78,142.67,0.26]
[1642396979282,1.70077588,142.77,142.67,0.26]
[1642396979483,41.22667374,142.76,142.67,0.26]
[1642396979884,41.47667374,142.76,142.67,0.26]
[1642396980283,41.47667374,142.76,142.66,68.02786312]
[1642396980687,41.22667374,142.76,142.66,68.02786312]
[1642396981284,41.22667374,142.76,142.66,57.51776312]
[1642396982116,41.47667374,142.76,142.66,57.51776312]
[1642396982917,41.47667374,142.76,142.67,0.26]
[1642396983117,41.22667374,142.76,142.67,0.26]
[1642396983720,6.0,142.76,142.67,0.26]
[1642396983920,6.0,142.78,142.67,10.769]
[1642396984122,6.0,142.78,142.68,24.3358]
[1642396984322,232.61257402,142.8,142.68,24.3358]
[1642396984520,228.62,142.8,142.68,24.5858]
[1642396984722,43.82353922,142.79,142.69,11.02750496]
[1642396984923,60.19353922,142.79,142.69,11.27750496]
[1642396986520,59.94353922,142.79,142.69,11.27750496]
[1642396987321,70.45413922,142.79,142.69,0.25]
[1642396987521,70.45413922,142.79,142.68,24.5858]
[1642396987719,80.8939151,142.79,142.68,24.5858]
[1642396987920,81.1439151,142.79,142.68,24.5858]
[1642396988320,151.1939151,142.79,142.68,24.5858]
[1642396988721,151.1939151,142.79,142.68,0.25]
[1642396988920,151.1939151,142.79,142.64,10.12]
[1642396988921,0.31108085,142.78,142.64,10.12]
[1642396989120,10.5124,142.77,142.64,10.12]
[1642396989324,16.7624,142.77,142.64,10.12]
[1642396989524,16.7624,142.77,142.64,80.17]
[1642396989925,16.7624,142.77,142.65,24.0389]
[1642396990129,39.14527225,142.76,142.66,39.21758651]
[1642396990425,45.39527225,142.76,142.66,39.46758651]
[1642396992726,45.39527225,142.76,142.67,23.3955]
[1642396992930,45.39527225,142.76,142.67,23.6455]
[1642396993226,45.39527225,142.76,142.67,23.3955]
[1642396993428,45.39527225,142.76,142.62,27.90381228]
[1642396993429,57.60874813,142.76,142.62,27.90381228]
[1642396993630,73.99874813,142.76,142.62,24.2481]
[1642396993928,73.99874813,142.76,142.62,24.4981]
[1642396994331,73.99874813,142.76,142.63,32.74998947]
[1642396994729,73.99874813,142.76,142.63,32.99998947]
[1642396995329,67.72874813,142.76,142.63,32.99998947]
[1642396995736,10.5155,142.72,142.61,33.903]
[1642396995931,25.2755,142.72,142.61,23.783]
[1642396996138,1.70077588,142.71,142.61,23.783]
[1642396996436,7.95077588,142.71,142.61,23.783]
[1642396996632,7.95077588,142.71,142.56,13.7673922]
[1642396996835,43.16196689,142.7,142.57,35.49717491]
[1642396997233,47.71119101,142.7,142.57,35.49717491]
[1642396997436,12.21877588,142.69,142.57,35.49717491]
[1642396997933,18.46877588,142.69,142.57,35.74717491]
[1642396998737,27.35277588,142.69,142.57,35.74717491]
[1642397000135,25.652,142.69,142.57,35.74717491]
[1642397000335,16.768,142.69,142.57,35.74717491]
[1642397001437,18.46877588,142.69,142.57,35.74717491]